Employee Name,Substantive Rank,Date Expense Incurred,Expense Type,Line Item Description,Expense Line Amount,
3* and above,,,,,
"ATHA, STUART DAVID",Air Marshal,02/11/2017,Other Duty Travel,Subsistence Expense,20.00,
"ATHA, STUART DAVID",Air Marshal,17/12/2016,Other Duty Travel,Motor Mileage Allowance (MMA),8.50,
"ATHA, STUART DAVID",Air Marshal,20/05/2017,Other Duty Travel,Motor Mileage Allowance (MMA),8.50,
"ATHA, STUART DAVID",Air Marshal,01/07/2017,Other Duty Travel,Motor Mileage Allowance (MMA),8.50,
"ATHA, STUART DAVID",Air Marshal,29/07/2017,Other Duty Travel,Motor Mileage Allowance (MMA),8.50,
"ATHA, STUART DAVID",Air Marshal,09/09/2017,Other Duty Travel,Motor Mileage Allowance (MMA),8.50,
"ATHA, STUART DAVID",Air Marshal,23/09/2017,Other Duty Travel,Motor Mileage Allowance (MMA),8.50,
"ATHA, STUART DAVID",Air Marshal,04/11/2017,Other Duty Travel,Motor Mileage Allowance (MMA),8.50,
"ATHA, STUART DAVID",Air Marshal,18/11/2017,Other Duty Travel,Motor Mileage Allowance (MMA),8.50,
"ATHA, STUART DAVID",Air Marshal,16/12/2017,Other Duty Travel,Motor Mileage Allowance (MMA),8.50,
"ATHA, STUART DAVID",Air Marshal,22/08/2017,Other Duty Travel,Motor Mileage Allowance (MMA),43.50,
"CARTER, NICHOLAS PATRICK",General,25/09/2017,Other Duty Travel,Private Arrangements Rate - Staying with Family and Friends Rate,35.00,
"CARTER, NICHOLAS PATRICK",General,25/09/2017,Other Duty Travel,Subsistence Expense,21.05,
"CARTER, NICHOLAS PATRICK",General,16/11/2017,Other Duty Travel,Rail Fare,205.00,
"CHAFFEY, JONATHAN PAUL MICHAEL",Chaplain in Chief,16/10/2017,Other Duty Travel,Subsistence Expense,280.00,
"CHAFFEY, JONATHAN PAUL MICHAEL",Chaplain in Chief,29/09/2017,Other Duty Travel,Subsistence Expense,339.16,
"CHAFFEY, JONATHAN PAUL MICHAEL",Chaplain in Chief,15/09/2017,Other Duty Travel,Subsistence Expense,112.95,
"CHAFFEY, JONATHAN PAUL MICHAEL",Chaplain in Chief,16/10/2017,Other Duty Travel,Taxi Fare,15.00,
"CHAFFEY, JONATHAN PAUL MICHAEL",Chaplain in Chief,26/09/2017,Other Duty Travel,Taxi Fare,92.64,
"CHAFFEY, JONATHAN PAUL MICHAEL",Chaplain in Chief,20/11/2017,Other Duty Travel,Subsistence Expense,7.74,
"COULTER, DAVID GEORGE",Chaplain General,25/09/2017,Other Duty Travel,Private Arrangements Rate - Staying with Family and Friends Rate,140.00,
"COULTER, DAVID GEORGE",Chaplain General,04/10/2017,Other Duty Travel,Subsistence Expense,95.00,
"COULTER, DAVID GEORGE",Chaplain General,11/10/2017,Other Duty Travel,Subsistence Expense,24.95,
"COULTER, DAVID GEORGE",Chaplain General,10/10/2017,Other Duty Travel,Subsistence Expense,186.00,
"COULTER, DAVID GEORGE",Chaplain General,25/09/2017,Other Duty Travel,Taxi Fare,53.73,
"COULTER, DAVID GEORGE",Chaplain General,28/09/2017,Other Duty Travel,Taxi Fare,79.75,
"COULTER, DAVID GEORGE",Chaplain General,10/10/2017,Other Duty Travel,Taxi Fare,23.00,
"COULTER, DAVID GEORGE",Chaplain General,23/11/2017,Other Duty Travel,Bus Fare,7.50,
"COULTER, DAVID GEORGE",Chaplain General,23/11/2017,Other Duty Travel,Private Arrangements Rate - Staying with Family and Friends Rate,35.00,
"COULTER, DAVID GEORGE",Chaplain General,10/11/2017,Other Duty Travel,Subsistence Expense,151.75,
"COULTER, DAVID GEORGE",Chaplain General,24/11/2017,Other Duty Travel,Subsistence Expense,6.25,
"FELTON, RICHARD FRIEDRICH PATRICK",Lieutenant General,04/10/2017,Other Duty Travel,Subsistence Expense,124.00,
"FELTON, RICHARD FRIEDRICH PATRICK",Lieutenant General,11/10/2017,Other Duty Travel,Subsistence Expense,174.00,
"FELTON, RICHARD FRIEDRICH PATRICK",Lieutenant General,17/10/2017,Other Duty Travel,Subsistence Expense,99.00,
"FELTON, RICHARD FRIEDRICH PATRICK",Lieutenant General,19/10/2017,Other Duty Travel,Subsistence Expense,138.00,
"FELTON, RICHARD FRIEDRICH PATRICK",Lieutenant General,25/10/2017,Other Duty Travel,Subsistence Expense,129.00,
"FELTON, RICHARD FRIEDRICH PATRICK",Lieutenant General,23/10/2017,Other Duty Travel,Subsistence Expense,189.00,
"FELTON, RICHARD FRIEDRICH PATRICK",Lieutenant General,16/11/2017,Other Duty Travel,Subsistence Expense,199.00,
"FELTON, RICHARD FRIEDRICH PATRICK",Lieutenant General,21/11/2017,Other Duty Travel,Subsistence Expense,288.00,
"FELTON, RICHARD FRIEDRICH PATRICK",Lieutenant General,29/11/2017,Other Duty Travel,Subsistence Expense,138.00,
"FELTON, RICHARD FRIEDRICH PATRICK",Lieutenant General,06/12/2017,Other Duty Travel,Subsistence Expense,198.00,
"JAQUES, PAUL WILLIAM",Lieutenant General,21/09/2017,Other Duty Travel,Subsistence Expense,16.44,
"JAQUES, PAUL WILLIAM",Lieutenant General,02/10/2017,Other Duty Travel,Subsistence Expense,100.17,
"JAQUES, PAUL WILLIAM",Lieutenant General,03/10/2017,Other Duty Travel,Subsistence Expense,97.17,
"JAQUES, PAUL WILLIAM",Lieutenant General,09/10/2017,Other Duty Travel,Subsistence Expense,5.67,
"JAQUES, PAUL WILLIAM",Lieutenant General,11/10/2017,Other Duty Travel,Subsistence Expense,3.45,
"JAQUES, PAUL WILLIAM",Lieutenant General,06/11/2017,Other Duty Travel,Subsistence Expense,76.43,
"JAQUES, PAUL WILLIAM",Lieutenant General,06/11/2017,Other Duty Travel,Subsistence Expense,4.17,
"JAQUES, PAUL WILLIAM",Lieutenant General,16/11/2017,Other Duty Travel,Subsistence Expense,271.12,
"JAQUES, PAUL WILLIAM",Lieutenant General,30/10/2017,Other Duty Travel,Subsistence Expense,133.17,
"JAQUES, PAUL WILLIAM",Lieutenant General,21/11/2017,Other Duty Travel,Subsistence Expense,18.17,
"JAQUES, PAUL WILLIAM",Lieutenant General,27/11/2017,Other Duty Travel,Subsistence Expense,390.11,
"MESSENGER, GORDON KENNETH",General,21/09/2017,Other Duty Travel,Subsistence Expense,8.26,
"MESSENGER, GORDON KENNETH",General,22/09/2017,Other Duty Travel,Subsistence Expense,6.26,
"MESSENGER, GORDON KENNETH",General,25/09/2017,Other Duty Travel,Subsistence Expense,49.77,
"MESSENGER, GORDON KENNETH",General,26/09/2017,Other Duty Travel,Subsistence Expense,24.62,
"MESSENGER, GORDON KENNETH",General,19/06/2017,Miscellaneous,Utility Charges,18.99,
"MESSENGER, GORDON KENNETH",General,19/08/2017,Miscellaneous,Utility Charges,18.99,
"MESSENGER, GORDON KENNETH",General,19/09/2017,Miscellaneous,Utility Charges,18.99,
"NUGEE, RICHARD EDWARD",Lieutenant General,02/11/2017,Other Duty Travel,Rail Fare,46.55,
"PEACH, STUART WILLIAM",Chief of Defence,25/08/2017,Other Duty Travel,Motor Mileage Allowance (MMA),71.75,
"PEACH, STUART WILLIAM",Chief of Defence,24/08/2017,Other Duty Travel,Motor Mileage Allowance (MMA),71.75,
"POPE, NICHOLAS ARTHUR WILLIAM",Lieutenant General,17/10/2017,Other Duty Travel,Subsistence Expense,135.00,
"POPE, NICHOLAS ARTHUR WILLIAM",Lieutenant General,11/10/2017,Other Duty Travel,Subsistence Expense,29.00,
"POPE, NICHOLAS ARTHUR WILLIAM",Lieutenant General,30/10/2017,Other Duty Travel,Subsistence Expense,135.00,
"POPE, NICHOLAS ARTHUR WILLIAM",Lieutenant General,10/11/2017,Other Duty Travel,Subsistence Expense,304.30,
"POPE, NICHOLAS ARTHUR WILLIAM",Lieutenant General,12/12/2017,Other Duty Travel,Subsistence Expense,150.75,
"RADFORD, TIMOTHY BUCHAN",Lieutenant General,22/09/2017,Other Duty Travel,Subsistence Expense,187.80,
"RADFORD, TIMOTHY BUCHAN",Lieutenant General,02/10/2017,Other Duty Travel,Subsistence Expense,129.95,
"RADFORD, TIMOTHY BUCHAN",Lieutenant General,07/12/2017,Other Duty Travel,Subsistence Expense,69.82,
"SANDERS, PATRICK NICHOLAS YARDLEY MONRAD",Lieutenant General,01/11/2017,Other Duty Travel,Private Arrangements Rate - Staying with Family and Friends Rate,35.00,
"YOUNG, JULIAN ALEXANDER",Air Marshal,20/06/2017,Other Duty Travel,Rail Fare,9.80,
"YOUNG, JULIAN ALEXANDER",Air Marshal,29/06/2017,Other Duty Travel,Rail Fare,9.80,
"YOUNG, JULIAN ALEXANDER",Air Marshal,28/06/2017,Other Duty Travel,Rail Fare,4.90,
"YOUNG, JULIAN ALEXANDER",Air Marshal,06/09/2017,Other Duty Travel,Rail Fare,9.80,
"YOUNG, JULIAN ALEXANDER",Air Marshal,25/08/2017,Other Duty Travel,Rail Fare,30.00,
"YOUNG, JULIAN ALEXANDER",Air Marshal,07/09/2017,Other Duty Travel,Subsistence Expense,20.40,
"YOUNG, JULIAN ALEXANDER",Air Marshal,22/06/2017,Other Duty Travel,Subsistence Expense,12.50,
"YOUNG, JULIAN ALEXANDER",Air Marshal,06/09/2017,Other Duty Travel,Subsistence Expense,125.00,
"YOUNG, JULIAN ALEXANDER",Air Marshal,08/09/2017,Other Duty Travel,Subsistence Expense,135.99,
"YOUNG, JULIAN ALEXANDER",Air Marshal,21/06/2017,Other Duty Travel,Subsistence Expense,137.80,
"YOUNG, JULIAN ALEXANDER",Air Marshal,04/07/2017,Other Duty Travel,Subsistence Expense,120.85,
"YOUNG, JULIAN ALEXANDER",Air Marshal,26/07/2017,Other Duty Travel,Subsistence Expense,125.00,
"YOUNG, JULIAN ALEXANDER",Air Marshal,06/08/2017,Other Duty Travel,Subsistence Expense,50.25,
"YOUNG, JULIAN ALEXANDER",Air Marshal,27/07/2017,Other Duty Travel,Subsistence Expense,125.00,
"YOUNG, JULIAN ALEXANDER",Air Marshal,14/09/2017,Other Duty Travel,Subsistence Expense,187.80,
"YOUNG, JULIAN ALEXANDER",Air Marshal,15/09/2017,Other Duty Travel,Subsistence Expense,102.30,
"YOUNG, JULIAN ALEXANDER",Air Marshal,13/09/2017,Other Duty Travel,Subsistence Expense,197.30,
"YOUNG, JULIAN ALEXANDER",Air Marshal,22/08/2017,Other Duty Travel,Subsistence Expense,137.99,
"YOUNG, JULIAN ALEXANDER",Air Marshal,23/08/2017,Other Duty Travel,Subsistence Expense,132.43,
"YOUNG, JULIAN ALEXANDER",Air Marshal,24/08/2017,Other Duty Travel,Subsistence Expense,164.56,
"YOUNG, JULIAN ALEXANDER",Air Marshal,11/09/2017,Other Duty Travel,Subsistence Expense,14.32,
"YOUNG, JULIAN ALEXANDER",Air Marshal,21/08/2017,Other Duty Travel,Subsistence Expense,15.00,
"YOUNG, JULIAN ALEXANDER",Air Marshal,05/09/2017,Other Duty Travel,Subsistence Expense,17.80,
"YOUNG, JULIAN ALEXANDER",Air Marshal,08/09/2017,Other Duty Travel,Taxi Fare,65.60,
"YOUNG, JULIAN ALEXANDER",Air Marshal,26/09/2017,Other Duty Travel,Subsistence Expense,168.36,
"YOUNG, JULIAN ALEXANDER",Air Marshal,28/09/2017,Other Duty Travel,Subsistence Expense,213.41,
"YOUNG, JULIAN ALEXANDER",Air Marshal,27/09/2017,Other Duty Travel,Subsistence Expense,185.21,
"YOUNG, JULIAN ALEXANDER",Air Marshal,03/10/2017,Other Duty Travel,Subsistence Expense,125.44,
"YOUNG, JULIAN ALEXANDER",Air Marshal,11/10/2017,Other Duty Travel,Subsistence Expense,169.95,
"YOUNG, JULIAN ALEXANDER",Air Marshal,03/07/2017,Other Duty Travel,Subsistence Expense,8.65,
"YOUNG, JULIAN ALEXANDER",Air Marshal,20/07/2017,Other Duty Travel,Subsistence Expense,9.57,
"YOUNG, JULIAN ALEXANDER",Air Marshal,26/07/2017,Other Duty Travel,Subsistence Expense,19.47,
"YOUNG, JULIAN ALEXANDER",Air Marshal,19/07/2017,Other Duty Travel,Subsistence Expense,18.10,
"YOUNG, JULIAN ALEXANDER",Air Marshal,02/07/2017,Other Duty Travel,Subsistence Expense,37.05,
"YOUNG, JULIAN ALEXANDER",Air Marshal,03/10/2017,Other Duty Travel,Taxi Fare,24.32,
"YOUNG, JULIAN ALEXANDER",Air Marshal,25/09/2017,Other Duty Travel,Taxi Fare,7.00,
"YOUNG, JULIAN ALEXANDER",Air Marshal,04/10/2017,Other Duty Travel,Taxi Fare,24.32,
2*,,,,,
"BETHELL, KEITH HUGH ROBERT",Air Vice-Marshal,09/10/2017,Other Duty Travel,Subsistence Expense,5.95,
"BETHELL, KEITH HUGH ROBERT",Air Vice-Marshal,09/10/2017,Other Duty Travel,Subsistence Expense,9.82,
"BETHELL, KEITH HUGH ROBERT",Air Vice-Marshal,03/10/2017,Other Duty Travel,Subsistence Expense,21.13,
"BETHELL, KEITH HUGH ROBERT",Air Vice-Marshal,04/10/2017,Other Duty Travel,Subsistence Expense,7.27,
"BETHELL, KEITH HUGH ROBERT",Air Vice-Marshal,05/10/2017,Other Duty Travel,Taxi Fare,25.00,
"BETHELL, KEITH HUGH ROBERT",Air Vice-Marshal,18/10/2017,Other Duty Travel,Foreign Currency Exchange Costs,3.00,
"BETHELL, KEITH HUGH ROBERT",Air Vice-Marshal,25/10/2017,Other Duty Travel,Subsistence Expense,4.15,
"BETHELL, KEITH HUGH ROBERT",Air Vice-Marshal,18/10/2017,Other Duty Travel,Subsistence Expense,4.77,
"BETHELL, KEITH HUGH ROBERT",Air Vice-Marshal,19/10/2017,Other Duty Travel,Subsistence Expense,2.25,
"BETHELL, KEITH HUGH ROBERT",Air Vice-Marshal,30/10/2017,Other Duty Travel,Subsistence Expense,6.96,
"BETHELL, KEITH HUGH ROBERT",Air Vice-Marshal,01/11/2017,Other Duty Travel,Subsistence Expense,8.60,
"BETHELL, KEITH HUGH ROBERT",Air Vice-Marshal,31/10/2017,Other Duty Travel,Subsistence Expense,11.04,
"BETHELL, KEITH HUGH ROBERT",Air Vice-Marshal,18/10/2017,Other Duty Travel,Taxi Fare,30.90,
"BETHELL, KEITH HUGH ROBERT",Air Vice-Marshal,11/12/2017,Miscellaneous,Professional Body Subscription Fees,386.00,
"BORTON, NICHOLAS ROBERT MACRAE",Major General,11/10/2017,Other Duty Travel,Subsistence Expense,30.09,
"BORTON, NICHOLAS ROBERT MACRAE",Major General,29/09/2017,Other Duty Travel,Subsistence Expense,18.02,
"BORTON, NICHOLAS ROBERT MACRAE",Major General,13/10/2017,Other Duty Travel,Subsistence Expense,13.70,
"BORTON, NICHOLAS ROBERT MACRAE",Major General,27/10/2017,Other Duty Travel,Subsistence Expense,3.99,
"BRAMBLE, WILLIAM JAMES FRANK",Major General,22/09/2017,Other Duty Travel,Subsistence Expense,187.80,
"BRUCE, ROBERT BERNARD",Major General,31/05/2017,Other Duty Travel,Motor Mileage Allowance (MMA),12.50,
"BRUCE, ROBERT BERNARD",Major General,27/09/2017,Other Duty Travel,Rail Fare,4.90,
"BRUCE, ROBERT BERNARD",Major General,27/09/2017,Other Duty Travel,Subsistence Expense,136.98,
"BRUCE, ROBERT BERNARD",Major General,29/09/2017,Other Duty Travel,Taxi Fare,9.00,
"BRUCE, ROBERT BERNARD",Major General,27/09/2017,Other Duty Travel,Taxi Fare,9.40,
"BRUCE, ROBERT BERNARD",Major General,01/11/2017,Medical and Dental,Incidental Expenses - UK,20.00,
"BRUCE, ROBERT BERNARD",Major General,05/11/2017,Other Duty Travel,Subsistence Expense,128.79,
"BRUCE, ROBERT BERNARD",Major General,06/11/2017,Other Duty Travel,Subsistence Expense,146.10,
"BRUCE, ROBERT BERNARD",Major General,05/12/2017,Resettlement,Rail Fare,9.80,
"BRUCE, ROBERT BERNARD",Major General,06/12/2017,Resettlement,Rail Fare,9.80,
"BRUCE, ROBERT BERNARD",Major General,04/12/2017,Resettlement,Subsistence Expense,397.23,
"CAPPS, Duncan Francis",Major General,16/10/2017,Other Duty Travel,Subsistence Expense,8.63,
"CAPPS, Duncan Francis",Major General,23/10/2017,Other Duty Travel,Subsistence Expense,8.86,
"CAPPS, Duncan Francis",Major General,06/11/2017,Resettlement,Subsistence Expense,520.00,
"CAPPS, Duncan Francis",Major General,01/11/2017,Other Duty Travel,Subsistence Expense,20.00,
"CAPPS, Duncan Francis",Major General,15/11/2017,Other Duty Travel,Subsistence Expense,116.95,
"CAPPS, Duncan Francis",Major General,27/11/2017,Other Duty Travel,Subsistence Expense,11.18,
"CAPPS, Duncan Francis",Major General,08/12/2017,Other Duty Travel,Motor Mileage Allowance (MMA),4.11,
"CAPPS, Duncan Francis",Major General,01/12/2017,Other Duty Travel,Subsistence Expense,14.65,
"CHIVERS, PAUL AUSTIN",Rear-Admiral,13/09/2017,Other Duty Travel,Subsistence Expense,17.32,
"CHIVERS, PAUL AUSTIN",Rear-Admiral,21/09/2017,Other Duty Travel,Taxi Fare,7.21,
"CHIVERS, PAUL AUSTIN",Rear-Admiral,30/11/2017,Other Duty Travel,Bus Fare,5.41,
"CHIVERS, PAUL AUSTIN",Rear-Admiral,30/11/2017,Other Duty Travel,Subsistence Expense,0.11,
"CHIVERS, PAUL AUSTIN",Rear-Admiral,28/11/2017,Other Duty Travel,Subsistence Expense,4.66,
"CHIVERS, PAUL AUSTIN",Rear-Admiral,04/12/2017,Other Duty Travel,Subsistence Expense,20.17,
"CHIVERS, PAUL AUSTIN",Rear-Admiral,05/12/2017,Other Duty Travel,Subsistence Expense,21.62,
"CHIVERS, PAUL AUSTIN",Rear-Admiral,06/12/2017,Other Duty Travel,Tube/Underground Fares,12.00,
"ELLIOT, CHRISTINA REID",Air Vice-Marshal,08/11/2017,Other Duty Travel,Subsistence Expense,83.50,
"ELLIOT, CHRISTINA REID",Air Vice-Marshal,12/12/2017,Other Duty Travel,Parking Fees,8.00,
"ELLIOT, CHRISTINA REID",Air Vice-Marshal,12/12/2017,Other Duty Travel,Rail Fare,36.80,
"GAUNT, MARK JARVIS",Major General,18/09/2017,Other Duty Travel,Bus Fare,7.50,
"GAUNT, MARK JARVIS",Major General,07/09/2017,Other Duty Travel,Parking Fees,6.00,
"GAUNT, MARK JARVIS",Major General,03/08/2017,Other Duty Travel,Parking Fees,3.00,
"GAUNT, MARK JARVIS",Major General,14/09/2017,Other Duty Travel,Subsistence Expense,442.57,
"GAUNT, MARK JARVIS",Major General,20/09/2017,Other Duty Travel,Subsistence Expense,204.83,
"GAUNT, MARK JARVIS",Major General,15/11/2017,Other Duty Travel,Bus Fare,8.00,
"GAUNT, MARK JARVIS",Major General,20/10/2017,Other Duty Travel,Parking Fees,3.00,
"GAUNT, MARK JARVIS",Major General,07/11/2017,Other Duty Travel,Subsistence Expense,94.50,
"GAUNT, MARK JARVIS",Major General,26/10/2017,Other Duty Travel,Subsistence Expense,80.00,
"GAUNT, MARK JARVIS",Major General,16/11/2017,Other Duty Travel,Subsistence Expense,130.80,
"GAUNT, MARK JARVIS",Major General,16/11/2017,Other Duty Travel,Taxi Fare,25.00,
"GRAY, SUSAN CATHERINE",Air Vice-Marshal,08/09/2017,Other Duty Travel,Telephone Charges (Duty Phone Calls),65.27,
"HILL, GILES PATRICK",Major General,14/09/2017,Other Duty Travel,Hire Car Duty Fuel Costs,25.25,
"HILL, GILES PATRICK",Major General,14/09/2017,Other Duty Travel,Subsistence Expense,4.92,
"HILL, GILES PATRICK",Major General,13/09/2017,Other Duty Travel,Subsistence Expense,1.17,
"HILL, GILES PATRICK",Major General,22/09/2017,Other Duty Travel,Subsistence Expense,10.89,
"HILL, GILES PATRICK",Major General,12/10/2017,Other Duty Travel,Subsistence Expense,114.65,
"HODGSON, TIMOTHY CHARLES",Rear-Admiral,21/10/2017,Other Duty Travel,Bus Fare,1.50,
"HODGSON, TIMOTHY CHARLES",Rear-Admiral,11/10/2017,Other Duty Travel,Bus Fare,1.50,
"HODGSON, TIMOTHY CHARLES",Rear-Admiral,11/10/2017,Other Duty Travel,Subsistence Expense,11.00,
"HODGSON, TIMOTHY CHARLES",Rear-Admiral,21/10/2017,Other Duty Travel,Subsistence Expense,107.70,
"HODGSON, TIMOTHY CHARLES",Rear-Admiral,11/10/2017,Other Duty Travel,Taxi Fare,5.20,
"HODGSON, TIMOTHY CHARLES",Rear-Admiral,13/09/2017,Other Duty Travel,Taxi Fare,21.15,
"HODGSON, TIMOTHY CHARLES",Rear-Admiral,22/09/2017,Other Duty Travel,Taxi Fare,36.87,
"HODGSON, TIMOTHY CHARLES",Rear-Admiral,24/10/2017,Other Duty Travel,Taxi Fare,15.99,
"HODGSON, TIMOTHY CHARLES",Rear-Admiral,23/10/2017,Other Duty Travel,Tube/Underground Fares,4.00,
"HODGSON, TIMOTHY CHARLES",Rear-Admiral,13/09/2017,Other Duty Travel,Tube/Underground Fares,1.60,
"HYAMS, TIMOTHY DAVID",Major General,24/10/2017,Other Duty Travel,Subsistence Expense,108.05,
"HYAMS, TIMOTHY DAVID",Major General,07/11/2017,Other Duty Travel,Subsistence Expense,173.11,
"JAMES, WARREN AUSTIN WILLIAM",Air Vice-Marshal,12/10/2017,Other Duty Travel,Subsistence Expense,139.00,
"JAMES, WARREN AUSTIN WILLIAM",Air Vice-Marshal,08/11/2017,Other Duty Travel,Subsistence Expense,120.00,
"JAMES, WARREN AUSTIN WILLIAM",Air Vice-Marshal,08/11/2017,Other Duty Travel,Taxi Fare,17.00,
"JAMES, WARREN AUSTIN WILLIAM",Air Vice-Marshal,09/11/2017,Other Duty Travel,Taxi Fare,22.00,
"JAMES, WARREN AUSTIN WILLIAM",Air Vice-Marshal,21/11/2017,Other Duty Travel,Taxi Fare,11.00,
"JAMES, WARREN AUSTIN WILLIAM",Air Vice-Marshal,20/11/2017,Other Duty Travel,Subsistence Expense,139.00,
"JAMES, WARREN AUSTIN WILLIAM",Air Vice-Marshal,07/12/2017,Other Duty Travel,Subsistence Expense,240.48,
"JAMES, WARREN AUSTIN WILLIAM",Air Vice-Marshal,06/12/2017,Other Duty Travel,Taxi Fare,9.00,
"JAMES, WARREN AUSTIN WILLIAM",Air Vice-Marshal,06/12/2017,Other Duty Travel,Taxi Fare,10.00,
"JAMES, WARREN AUSTIN WILLIAM",Air Vice-Marshal,07/12/2017,Other Duty Travel,Taxi Fare,10.00,
"JAMES, WARREN AUSTIN WILLIAM",Air Vice-Marshal,05/12/2017,Other Duty Travel,Taxi Fare,13.80,
"JAMES, WARREN AUSTIN WILLIAM",Air Vice-Marshal,21/11/2017,Other Duty Travel,Taxi Fare,20.00,
"KNIGHTON, RICHARD JOHN",Air Vice-Marshal,21/01/2017,Other Duty Travel,Air Fare (Actual Cost),91.88,
"KNIGHTON, RICHARD JOHN",Air Vice-Marshal,12/09/2017,Other Duty Travel,Air Fare (Actual Cost),125.00,
"KNIGHTON, RICHARD JOHN",Air Vice-Marshal,09/09/2017,Other Duty Travel,Hire Car Duty Fuel Costs,29.05,
"KNIGHTON, RICHARD JOHN",Air Vice-Marshal,21/01/2017,Other Duty Travel,Parking Fees,50.00,
"KNIGHTON, RICHARD JOHN",Air Vice-Marshal,01/03/2017,Miscellaneous,Professional Body Subscription Fees,305.90,
"KNIGHTON, RICHARD JOHN",Air Vice-Marshal,14/07/2017,Other Duty Travel,Taxi Fare,6.00,
"KNIGHTON, RICHARD JOHN",Air Vice-Marshal,14/07/2017,Other Duty Travel,Taxi Fare,6.00,
"KNIGHTON, RICHARD JOHN",Air Vice-Marshal,15/05/2017,Other Duty Travel,Taxi Fare,10.00,
"MACKAY, GRAEME A",Rear-Admiral,20/10/2017,Other Duty Travel,Taxi Fare,20.00,
"MAYHEW, GERARD MICHAEL DAVID",Air Vice-Marshal,10/11/2017,Other Duty Travel,Subsistence Expense,6.67,
"MUNRO, RANALD TORQUIL IAN",Major General,03/11/2017,Other Duty Travel,Taxi Fare,18.00,
"MUNRO, RANALD TORQUIL IAN",Major General,02/11/2017,Other Duty Travel,Taxi Fare,19.00,
"NANSON, PAUL ANTHONY EDWARD",Major General,29/09/2017,Miscellaneous,Passport / Visa Fees,55.11,
"NANSON, PAUL ANTHONY EDWARD",Major General,27/09/2017,Other Duty Travel,Subsistence Expense,5.17,
"NANSON, PAUL ANTHONY EDWARD",Major General,29/09/2017,Other Duty Travel,Subsistence Expense,10.57,
"NANSON, PAUL ANTHONY EDWARD",Major General,06/10/2017,Other Duty Travel,Subsistence Expense,148.17,
"NANSON, PAUL ANTHONY EDWARD",Major General,20/11/2017,Other Duty Travel,Subsistence Expense,121.42,
"NITSCH, ROBERT MALCOLM BOWSTEAD",Major General,13/10/2017,Other Duty Travel,Parking Fees,7.00,
"NITSCH, ROBERT MALCOLM BOWSTEAD",Major General,24/10/2017,Other Duty Travel,Parking Fees,7.00,
"NITSCH, ROBERT MALCOLM BOWSTEAD",Major General,09/10/2017,Other Duty Travel,Subsistence Expense,13.22,
"NITSCH, ROBERT MALCOLM BOWSTEAD",Major General,11/10/2017,Other Duty Travel,Subsistence Expense,3.65,
"NITSCH, ROBERT MALCOLM BOWSTEAD",Major General,13/10/2017,Other Duty Travel,Subsistence Expense,9.50,
"NITSCH, ROBERT MALCOLM BOWSTEAD",Major General,17/10/2017,Other Duty Travel,Subsistence Expense,9.22,
"NITSCH, ROBERT MALCOLM BOWSTEAD",Major General,24/10/2017,Other Duty Travel,Subsistence Expense,5.70,
"NITSCH, ROBERT MALCOLM BOWSTEAD",Major General,25/10/2017,Other Duty Travel,Subsistence Expense,6.29,
"NITSCH, ROBERT MALCOLM BOWSTEAD",Major General,02/11/2017,Other Duty Travel,Subsistence Expense,4.55,
"NITSCH, ROBERT MALCOLM BOWSTEAD",Major General,05/10/2017,Other Duty Travel,Subsistence Expense,5.85,
"NITSCH, ROBERT MALCOLM BOWSTEAD",Major General,04/10/2017,Other Duty Travel,Subsistence Expense,122.96,
"NITSCH, ROBERT MALCOLM BOWSTEAD",Major General,02/11/2017,Other Duty Travel,Taxi Fare,7.00,
"NITSCH, ROBERT MALCOLM BOWSTEAD",Major General,11/10/2017,Other Duty Travel,Taxi Fare,10.00,
"NITSCH, ROBERT MALCOLM BOWSTEAD",Major General,11/10/2017,Other Duty Travel,Taxi Fare,7.00,
"NITSCH, ROBERT MALCOLM BOWSTEAD",Major General,17/10/2017,Other Duty Travel,Taxi Fare,7.00,
"NITSCH, ROBERT MALCOLM BOWSTEAD",Major General,25/10/2017,Other Duty Travel,Taxi Fare,7.00,
"NITSCH, ROBERT MALCOLM BOWSTEAD",Major General,18/10/2017,Other Duty Travel,Taxi Fare,7.00,
"NITSCH, ROBERT MALCOLM BOWSTEAD",Major General,05/10/2017,Other Duty Travel,Taxi Fare,10.00,
"NITSCH, ROBERT MALCOLM BOWSTEAD",Major General,09/10/2017,Other Duty Travel,Taxi Fare,7.30,
"NITSCH, ROBERT MALCOLM BOWSTEAD",Major General,17/10/2017,Other Duty Travel,Tube/Underground Fares,9.80,
"NITSCH, ROBERT MALCOLM BOWSTEAD",Major General,14/11/2017,Other Duty Travel,Bus Fare,8.00,
"NITSCH, ROBERT MALCOLM BOWSTEAD",Major General,12/11/2017,Other Duty Travel,Excess Fares,10.00,
"NITSCH, ROBERT MALCOLM BOWSTEAD",Major General,21/11/2017,Other Duty Travel,Parking Fees,7.00,
"NITSCH, ROBERT MALCOLM BOWSTEAD",Major General,29/11/2017,Other Duty Travel,Parking Fees,7.00,
"NITSCH, ROBERT MALCOLM BOWSTEAD",Major General,21/11/2017,Other Duty Travel,Subsistence Expense,2.94,
"NITSCH, ROBERT MALCOLM BOWSTEAD",Major General,29/11/2017,Other Duty Travel,Subsistence Expense,3.80,
"NITSCH, ROBERT MALCOLM BOWSTEAD",Major General,13/11/2017,Other Duty Travel,Subsistence Expense,4.30,
"NITSCH, ROBERT MALCOLM BOWSTEAD",Major General,28/11/2017,Other Duty Travel,Subsistence Expense,6.23,
"NITSCH, ROBERT MALCOLM BOWSTEAD",Major General,14/11/2017,Other Duty Travel,Subsistence Expense,6.73,
"NITSCH, ROBERT MALCOLM BOWSTEAD",Major General,13/11/2017,Other Duty Travel,Subsistence Expense,7.90,
"NITSCH, ROBERT MALCOLM BOWSTEAD",Major General,11/12/2017,Other Duty Travel,Subsistence Expense,9.55,
"NITSCH, ROBERT MALCOLM BOWSTEAD",Major General,12/11/2017,Other Duty Travel,Subsistence Expense,13.77,
"NITSCH, ROBERT MALCOLM BOWSTEAD",Major General,16/11/2017,Other Duty Travel,Subsistence Expense,14.15,
"NITSCH, ROBERT MALCOLM BOWSTEAD",Major General,14/11/2017,Other Duty Travel,Subsistence Expense,18.27,
"NITSCH, ROBERT MALCOLM BOWSTEAD",Major General,15/11/2017,Other Duty Travel,Subsistence Expense,25.00,
"NITSCH, ROBERT MALCOLM BOWSTEAD",Major General,14/11/2017,Other Duty Travel,Subsistence Expense,178.00,
"NITSCH, ROBERT MALCOLM BOWSTEAD",Major General,28/11/2017,Other Duty Travel,Taxi Fare,7.00,
"NITSCH, ROBERT MALCOLM BOWSTEAD",Major General,07/12/2017,Other Duty Travel,Taxi Fare,7.00,
"NITSCH, ROBERT MALCOLM BOWSTEAD",Major General,11/12/2017,Other Duty Travel,Tube/Underground Fares,4.90,
"NITSCH, ROBERT MALCOLM BOWSTEAD",Major General,29/11/2017,Other Duty Travel,Tube/Underground Fares,12.30,
"PARKER, GAVIN DOUGLAS ANTHONY",Air Vice-Marshal,19/08/2017,Change of Assignment,Hire Car Duty Fuel Costs,48.39,
"PARKER, GAVIN DOUGLAS ANTHONY",Air Vice-Marshal,18/08/2017,Change of Assignment,Hire Car Duty Fuel Costs,664.64,
"PARKER, GAVIN DOUGLAS ANTHONY",Air Vice-Marshal,23/08/2017,Change of Assignment,Subsistence Expense,5.60,
"PARKER, GAVIN DOUGLAS ANTHONY",Air Vice-Marshal,15/08/2017,Change of Assignment,Subsistence Expense,"2,430.62",
"PARKER, GAVIN DOUGLAS ANTHONY",Air Vice-Marshal,04/10/2017,Other Duty Travel,Taxi Fare,15.15,
"PARKER, GAVIN DOUGLAS ANTHONY",Air Vice-Marshal,04/10/2017,Other Duty Travel,Taxi Fare,10.00,
"PARKER, GAVIN DOUGLAS ANTHONY",Air Vice-Marshal,28/10/2017,Other Duty Travel,Taxi Fare,45.26,
"PARKER, GAVIN DOUGLAS ANTHONY",Air Vice-Marshal,03/11/2017,Other Duty Travel,Hire Car Duty Fuel Costs,41.22,
"PARKER, GAVIN DOUGLAS ANTHONY",Air Vice-Marshal,02/11/2017,Other Duty Travel,Private Arrangements Rate - Staying with Family and Friends Rate,45.50,
"PARKER, GAVIN DOUGLAS ANTHONY",Air Vice-Marshal,03/11/2017,Other Duty Travel,Taxi Fare,45.56,
"QUIGLEY, MICHAEL",Air Vice-Marshal,17/10/2017,Other Duty Travel,Parking Fees,8.00,
"QUIGLEY, MICHAEL",Air Vice-Marshal,03/10/2017,Other Duty Travel,Parking Fees,8.00,
"QUIGLEY, MICHAEL",Air Vice-Marshal,06/10/2017,Other Duty Travel,Taxi Fare,13.00,
"QUIGLEY, MICHAEL",Air Vice-Marshal,27/11/2017,Other Duty Travel,Parking Fees,8.00,
"QUIGLEY, MICHAEL",Air Vice-Marshal,16/11/2017,Other Duty Travel,Subsistence Expense,122.17,
"QUIGLEY, MICHAEL",Air Vice-Marshal,16/11/2017,Other Duty Travel,Taxi Fare,15.00,
"QUIGLEY, MICHAEL",Air Vice-Marshal,17/11/2017,Other Duty Travel,Tube/Underground Fares,4.90,
"QUIGLEY, MICHAEL",Air Vice-Marshal,30/11/2017,Other Duty Travel,Parking Fees,8.00,
"QUIGLEY, MICHAEL",Air Vice-Marshal,07/12/2017,Other Duty Travel,Subsistence Expense,270.76,
"QUIGLEY, MICHAEL",Air Vice-Marshal,07/12/2017,Other Duty Travel,Taxi Fare,10.00,
"QUIGLEY, MICHAEL",Air Vice-Marshal,06/12/2017,Other Duty Travel,Tube/Underground Fares,14.70,
"RIDGE, SUSAN KERSTIN",Major General,14/11/2017,Other Duty Travel,Bus Fare,12.00,
"RIDGE, SUSAN KERSTIN",Major General,14/11/2017,Other Duty Travel,Subsistence Expense,137.99,
"ROCHELLE, SIMON PETER",Air Vice-Marshal,05/10/2017,Other Duty Travel,Taxi Fare,15.00,
"RUSSELL, GRAHAM MICHAEL",Air Vice-Marshal,01/09/2017,HDT Manual,Home to Duty Travel (Living in private accommodation),179.62,
"RUSSELL, GRAHAM MICHAEL",Air Vice-Marshal,01/10/2017,HDT Manual,Home to Duty Travel (Living in private accommodation),128.30,
"RUSSELL, GRAHAM MICHAEL",Air Vice-Marshal,01/11/2017,HDT Manual,Home to Duty Travel (Living in private accommodation),141.13,
"RUSSELL, GRAHAM MICHAEL",Air Vice-Marshal,30/11/2017,Other Duty Travel,Motor Mileage Allowance (MMA),29.00,
"RUSSELL, GRAHAM MICHAEL",Air Vice-Marshal,30/11/2017,Other Duty Travel,Parking Fees,26.50,
"RUSSELL, GRAHAM MICHAEL",Air Vice-Marshal,30/11/2017,Other Duty Travel,Subsistence Expense,10.30,
"SEMPLE, RICHARD JAMES",Major General,31/08/2017,Other Duty Travel,Subsistence Expense,6.95,
"SEMPLE, RICHARD JAMES",Major General,05/07/2017,Other Duty Travel,Subsistence Expense,3.70,
"SEMPLE, RICHARD JAMES",Major General,23/08/2017,Other Duty Travel,Subsistence Expense,4.80,
"SEMPLE, RICHARD JAMES",Major General,22/09/2017,Other Duty Travel,Subsistence Expense,24.77,
"SEMPLE, RICHARD JAMES",Major General,19/09/2017,Other Duty Travel,Subsistence Expense,19.01,
"SEMPLE, RICHARD JAMES",Major General,20/09/2017,Other Duty Travel,Subsistence Expense,20.72,
"SEMPLE, RICHARD JAMES",Major General,21/09/2017,Other Duty Travel,Subsistence Expense,17.12,
"SEMPLE, RICHARD JAMES",Major General,08/11/2017,Other Duty Travel,Subsistence Expense,3.95,
"SEMPLE, RICHARD JAMES",Major General,06/11/2017,Other Duty Travel,Subsistence Expense,4.70,
"SEMPLE, RICHARD JAMES",Major General,26/10/2017,Other Duty Travel,Subsistence Expense,5.70,
"SEMPLE, RICHARD JAMES",Major General,26/10/2017,Other Duty Travel,Subsistence Expense,19.95,
"SEMPLE, RICHARD JAMES",Major General,24/10/2017,Other Duty Travel,Subsistence Expense,4.70,
"SEMPLE, RICHARD JAMES",Major General,11/11/2017,Other Duty Travel,Subsistence Expense,3.85,
"SWIFT, JAMES FRANCIS PARDOE",Major General,24/07/2017,Other Duty Travel,Bus Fare,10.00,
"SWIFT, JAMES FRANCIS PARDOE",Major General,13/10/2017,Other Duty Travel,Motor Mileage Allowance (MMA),46.79,
"SWIFT, JAMES FRANCIS PARDOE",Major General,12/06/2017,Other Duty Travel,Private Arrangements Rate - Staying with Family and Friends Rate,35.00,
"SWIFT, JAMES FRANCIS PARDOE",Major General,13/06/2017,Other Duty Travel,Subsistence Expense,140.90,
"SWIFT, JAMES FRANCIS PARDOE",Major General,24/07/2017,Other Duty Travel,Subsistence Expense,218.00,
"SWIFT, JAMES FRANCIS PARDOE",Major General,30/10/2017,Other Duty Travel,Subsistence Expense,142.13,
"SWIFT, JAMES FRANCIS PARDOE",Major General,26/09/2017,Other Duty Travel,Subsistence Expense,7.30,
"SWIFT, JAMES FRANCIS PARDOE",Major General,03/10/2017,Other Duty Travel,Subsistence Expense,3.85,
"SWIFT, JAMES FRANCIS PARDOE",Major General,12/10/2017,Other Duty Travel,Subsistence Expense,2.20,
"SWIFT, JAMES FRANCIS PARDOE",Major General,02/11/2017,Other Duty Travel,Subsistence Expense,5.30,
"SWIFT, JAMES FRANCIS PARDOE",Major General,06/11/2017,Other Duty Travel,Subsistence Expense,9.24,
"SWIFT, JAMES FRANCIS PARDOE",Major General,23/10/2017,Other Duty Travel,Subsistence Expense,25.00,
"SWIFT, JAMES FRANCIS PARDOE",Major General,13/10/2017,Other Duty Travel,Tolls,6.70,
"TALBOT-RICE, ROBERT HARRY",Major General,21/09/2017,Other Duty Travel,Subsistence Expense,20.95,
"TALBOT-RICE, ROBERT HARRY",Major General,28/09/2017,Other Duty Travel,Taxi Fare,10.00,
"THOMPSON, RICHARD CHARLES",Rear-Admiral,08/11/2017,Other Duty Travel,Subsistence Expense,25.00,
"THOMPSON, RICHARD CHARLES",Rear-Admiral,26/09/2017,Other Duty Travel,Subsistence Expense,25.00,
"THOMPSON, RICHARD CHARLES",Rear-Admiral,17/08/2017,Other Duty Travel,Subsistence Expense,104.00,
"THOMPSON, RICHARD CHARLES",Rear-Admiral,12/12/2017,Other Duty Travel,Subsistence Expense,112.40,
"THOMPSON, RICHARD CHARLES",Rear-Admiral,11/09/2017,Other Duty Travel,Subsistence Expense,114.78,
"THOMPSON, RICHARD CHARLES",Rear-Admiral,22/08/2017,Other Duty Travel,Subsistence Expense,115.45,
"THOMPSON, RICHARD CHARLES",Rear-Admiral,13/09/2017,Other Duty Travel,Subsistence Expense,115.70,
"THOMPSON, RICHARD CHARLES",Rear-Admiral,14/11/2017,Other Duty Travel,Subsistence Expense,122.00,
"THOMPSON, RICHARD CHARLES",Rear-Admiral,16/11/2017,Other Duty Travel,Subsistence Expense,125.00,
"THOMPSON, RICHARD CHARLES",Rear-Admiral,01/11/2017,Other Duty Travel,Subsistence Expense,143.50,
"THOMPSON, RICHARD CHARLES",Rear-Admiral,27/11/2017,Other Duty Travel,Subsistence Expense,154.95,
"TICKELL, CHRISTOPHER LINLEY",Major General,11/10/2017,Other Duty Travel,Foreign Currency Exchange Costs,28.29,
"TICKELL, CHRISTOPHER LINLEY",Major General,29/09/2017,Other Duty Travel,Subsistence Expense,3.85,
"TICKELL, CHRISTOPHER LINLEY",Major General,03/10/2017,Other Duty Travel,Subsistence Expense,3.85,
"TICKELL, CHRISTOPHER LINLEY",Major General,04/10/2017,Other Duty Travel,Subsistence Expense,5.95,
"TICKELL, CHRISTOPHER LINLEY",Major General,12/10/2017,Other Duty Travel,Subsistence Expense,660.31,
"TICKELL, CHRISTOPHER LINLEY",Major General,10/10/2017,Other Duty Travel,Subsistence Expense,18.55,
"TICKELL, CHRISTOPHER LINLEY",Major General,18/10/2017,Other Duty Travel,Subsistence Expense,8.70,
"TICKELL, CHRISTOPHER LINLEY",Major General,17/10/2017,Other Duty Travel,Subsistence Expense,6.90,
"TICKELL, CHRISTOPHER LINLEY",Major General,17/10/2017,Other Duty Travel,Subsistence Expense,155.00,
"TICKELL, CHRISTOPHER LINLEY",Major General,24/10/2017,Other Duty Travel,Subsistence Expense,6.00,
"TICKELL, CHRISTOPHER LINLEY",Major General,29/09/2017,Other Duty Travel,Taxi Fare,12.00,
"TICKELL, CHRISTOPHER LINLEY",Major General,03/10/2017,Other Duty Travel,Taxi Fare,18.00,
"TICKELL, CHRISTOPHER LINLEY",Major General,09/10/2017,Other Duty Travel,Taxi Fare,7.11,
"TICKELL, CHRISTOPHER LINLEY",Major General,10/10/2017,Other Duty Travel,Taxi Fare,11.84,
"TICKELL, CHRISTOPHER LINLEY",Major General,09/10/2017,Other Duty Travel,Taxi Fare,9.16,
"TICKELL, CHRISTOPHER LINLEY",Major General,11/10/2017,Other Duty Travel,Taxi Fare,9.40,
"TICKELL, CHRISTOPHER LINLEY",Major General,12/10/2017,Other Duty Travel,Taxi Fare,12.02,
"TICKELL, CHRISTOPHER LINLEY",Major General,17/10/2017,Other Duty Travel,Taxi Fare,12.00,
"TICKELL, CHRISTOPHER LINLEY",Major General,18/10/2017,Other Duty Travel,Taxi Fare,12.00,
"TICKELL, CHRISTOPHER LINLEY",Major General,24/10/2017,Other Duty Travel,Taxi Fare,17.00,
"TICKELL, CHRISTOPHER LINLEY",Major General,27/10/2017,Other Duty Travel,Taxi Fare,25.00,
"TICKELL, CHRISTOPHER LINLEY",Major General,06/11/2017,Other Duty Travel,Subsistence Expense,99.10,
"TICKELL, CHRISTOPHER LINLEY",Major General,06/11/2017,Other Duty Travel,Subsistence Expense,1.50,
"TICKELL, CHRISTOPHER LINLEY",Major General,21/11/2017,Other Duty Travel,Subsistence Expense,6.33,
"TICKELL, CHRISTOPHER LINLEY",Major General,16/11/2017,Other Duty Travel,Subsistence Expense,3.00,
"TICKELL, CHRISTOPHER LINLEY",Major General,17/11/2017,Other Duty Travel,Subsistence Expense,7.35,
"TICKELL, CHRISTOPHER LINLEY",Major General,31/10/2017,Other Duty Travel,Taxi Fare,27.00,
"TICKELL, CHRISTOPHER LINLEY",Major General,13/12/2017,Other Duty Travel,Subsistence Expense,3.85,
"TICKELL, CHRISTOPHER LINLEY",Major General,27/11/2017,Other Duty Travel,Subsistence Expense,5.70,
"TICKELL, CHRISTOPHER LINLEY",Major General,28/11/2017,Other Duty Travel,Subsistence Expense,14.41,
"TICKELL, CHRISTOPHER LINLEY",Major General,03/12/2017,Other Duty Travel,Subsistence Expense,411.43,
"TICKELL, CHRISTOPHER LINLEY",Major General,21/11/2017,Other Duty Travel,Taxi Fare,11.00,
"WARDLAW, RICHARD",Major General,23/09/2017,Other Duty Travel,Motor Mileage Allowance (MMA),67.50,
"WARDLAW, RICHARD",Major General,04/10/2017,Other Duty Travel,Subsistence Expense,14.85,
"WARDLAW, RICHARD",Major General,19/09/2017,Other Duty Travel,Taxi Fare,28.00,
"WARDLAW, RICHARD",Major General,03/10/2017,Other Duty Travel,Taxi Fare,22.40,
"WARDLAW, RICHARD",Major General,01/11/2017,Other Duty Travel,Rail Fare,33.10,
"WARDLAW, RICHARD",Major General,14/11/2017,Other Duty Travel,Taxi Fare,24.00,
"WARDLAW, RICHARD",Major General,09/11/2017,Other Duty Travel,Subsistence Expense,107.28,
"WARDLAW, RICHARD",Major General,30/10/2017,Other Duty Travel,Subsistence Expense,150.10,
"WARDLAW, RICHARD",Major General,10/11/2017,Other Duty Travel,Subsistence Expense,150.68,
"WARDLAW, RICHARD",Major General,07/11/2017,Other Duty Travel,Subsistence Expense,154.50,
"WELCH, NICHOLAS",Major General,25/09/2017,Other Duty Travel,Taxi Fare,8.00,
"WELCH, NICHOLAS",Major General,06/10/2017,Other Duty Travel,Taxi Fare,8.00,
"WELCH, NICHOLAS",Major General,19/10/2017,Other Duty Travel,Taxi Fare,8.00,
"WELCH, NICHOLAS",Major General,23/10/2017,Other Duty Travel,Taxi Fare,8.00,
"WELCH, NICHOLAS",Major General,15/11/2017,Other Duty Travel,Subsistence Expense,104.00,
"WELCH, NICHOLAS",Major General,03/11/2017,Other Duty Travel,Taxi Fare,8.00,
"WELCH, NICHOLAS",Major General,13/11/2017,Other Duty Travel,Taxi Fare,8.00,
"WELCH, NICHOLAS",Major General,22/11/2017,Miscellaneous,Passport / Visa Fees,6.00,
"WELCH, NICHOLAS",Major General,23/11/2017,Other Duty Travel,Taxi Fare,8.00,
"WELCH, NICHOLAS",Major General,29/11/2017,Other Duty Travel,Taxi Fare,8.00,
"WELCH, NICHOLAS",Major General,06/12/2017,Other Duty Travel,Taxi Fare,8.00,
"WIGSTON, MICHAEL",Air Vice-Marshal,09/09/2017,Other Duty Travel,Motor Mileage Allowance (MMA),32.75,
"WIGSTON, MICHAEL",Air Vice-Marshal,10/09/2017,Other Duty Travel,Motor Mileage Allowance (MMA),36.50,
"WIGSTON, MICHAEL",Air Vice-Marshal,10/09/2017,Other Duty Travel,Motor Mileage Allowance (MMA),2.50,
"WIGSTON, MICHAEL",Air Vice-Marshal,19/10/2017,Other Duty Travel,Taxi Fare,20.00,
"WIGSTON, MICHAEL",Air Vice-Marshal,05/10/2017,Other Duty Travel,Congestion Charge (CC),11.50,
"WIGSTON, MICHAEL",Air Vice-Marshal,15/09/2017,Other Duty Travel,Motor Mileage Allowance (MMA),21.50,
"WIGSTON, MICHAEL",Air Vice-Marshal,05/10/2017,Other Duty Travel,Motor Mileage Allowance (MMA),10.50,
"WIGSTON, MICHAEL",Air Vice-Marshal,01/10/2017,Other Duty Travel,Subsistence Expense,169.23,
"WIGSTON, MICHAEL",Air Vice-Marshal,01/11/2017,Other Duty Travel,Subsistence Expense,128.17,
"WOODDISSE, RALPH WILLIAM",Major General,18/10/2017,Other Duty Travel,Subsistence Expense,95.00,
"WOODDISSE, RALPH WILLIAM",Major General,03/11/2017,Other Duty Travel,Subsistence Expense,146.00,
"WOODDISSE, RALPH WILLIAM",Major General,06/11/2017,Other Duty Travel,Subsistence Expense,108.67,
"WOODDISSE, RALPH WILLIAM",Major General,19/11/2017,Other Duty Travel,Subsistence Expense,217.00,
"WOODDISSE, RALPH WILLIAM",Major General,05/12/2017,Other Duty Travel,Subsistence Expense,25.00,
"WOODDISSE, RALPH WILLIAM",Major General,11/12/2017,Other Duty Travel,Subsistence Expense,137.60,
